bitfinex/quotes_ETHUSD_20260225
["timestamp","ask_amount","ask_price","bid_price","bid_amount"]
[1772005978260,0.46459754,1895.0,1894.8,0.001]
[1772005979463,5.27663972,1895.2,1894.9,0.49362541]
[1772005979637,0.11946583,1895.6,1895.1,1.16410832]
[1772005979842,1.3188043,1895.7,1895.1,0.49362541]
[1772005979843,0.11946583,1895.5,1895.1,0.49362541]
[1772005980233,10.5518644,1895.6,1895.2,0.49362541]
[1772005980562,10.5518644,1895.5,1895.2,1.16410832]
[1772005981057,0.11946583,1895.4,1895.0,0.49362541]
[1772005981257,0.11946583,1895.4,1895.0,1.16410832]
[1772005981461,0.11946583,1895.4,1895.0,0.67048291]
[1772005981661,0.11946583,1895.2,1894.9,0.49362541]
[1772005981839,10.5518644,1895.3,1895.0,1.16410832]
[1772005982044,10.5518644,1895.2,1895.1,1.16410832]
[1772005982648,10.5518644,1895.2,1895.1,0.49362541]
[1772005983248,10.67133023,1895.2,1894.9,0.49362541]
[1772005983454,10.5518644,1895.1,1894.9,0.49362541]
[1772005983785,5.27538563,1895.6,1894.6,1.98998952]
[1772005983786,1.31838379,1896.3,1895.1,0.49362541]
[1772005983941,1.43779549,1896.4,1895.9,0.49362541]
[1772005984266,1.43779549,1896.4,1895.7,0.67048291]
[1772005984267,0.78994874,1896.2,1895.7,0.49362541]
[1772005984448,0.78994874,1896.1,1895.5,0.49362541]
[1772005984846,0.11946583,1896.1,1895.6,0.49362541]
[1772005986474,1.43803123,1896.0,1895.6,0.49362541]
[1772005986644,0.78994874,1895.8,1895.4,0.49362541]
[1772005986970,1.3185654,1896.0,1895.2,0.49362541]
[1772005986971,0.78994874,1895.6,1895.2,0.49362541]
[1772005987163,0.11946583,1895.6,1895.0,0.49362541]
[1772005987367,0.11946583,1895.8,1895.2,0.49362541]
[1772005987546,0.11946583,1895.8,1895.3,0.49362541]
[1772005987866,0.78994874,1895.6,1895.0,0.49362541]
[1772005988441,0.11946583,1895.4,1894.8,0.49362541]
[1772005989254,0.78994874,1895.4,1894.8,0.49362541]
[1772005989654,0.11946583,1895.4,1894.8,0.49362541]
[1772005990566,1.31905239,1895.3,1894.8,0.49362541]
[1772005993766,0.78994874,1895.2,1894.8,0.49362541]
[1772005995295,1.31919159,1895.1,1894.8,0.49362541]
[1772005998935,1.31919159,1895.1,1894.9,0.001]
[1772005999288,5.27651173,1895.2,1894.9,0.001]
[1772005999478,0.11846583,1894.8,1894.4,0.49362541]
[1772005999675,0.11846583,1894.8,1894.6,0.001]
[1772005999676,0.78894874,1894.8,1894.6,0.001]
[1772005999877,0.67048291,1894.7,1894.2,0.49362541]
[1772006000062,0.11846583,1894.6,1894.2,0.49362541]
[1772006001591,1.43800655,1894.6,1894.2,0.49362541]
[1772006002088,1.31947376,1894.7,1894.2,1.99029789]
[1772006002286,1.31947376,1894.7,1894.3,0.49362541]
[1772006002585,1.43790283,1894.8,1894.4,0.67048291]
[1772006002794,0.11846583,1895.1,1894.6,1.16410832]
[1772006003092,0.11846583,1895.1,1894.6,0.49362541]
[1772006003260,0.11846583,1895.1,1894.7,0.49362541]
[1772006003463,0.11846583,1895.1,1894.7,1.16410832]
[1772006003963,1.43768442,1895.1,1894.7,0.49362541]
[1772006005065,0.78894874,1895.0,1894.5,0.49362541]
[1772006005365,0.11846583,1895.0,1894.5,0.49362541]
[1772006007097,1.31933083,1894.9,1894.5,0.49362541]
[1772006008378,1.43773975,1895.0,1894.6,0.49127409]
[1772006009780,0.11846583,1895.2,1894.6,0.49127409]
[1772006010796,0.11846583,1895.2,1894.5,0.49127409]
[1772006012772,0.11846583,1895.0,1894.5,0.49127409]
[1772006013101,0.11846583,1895.0,1894.7,0.001]
[1772006013279,0.11846583,1895.0,1894.5,0.49127409]
[1772006013679,0.11846583,1895.0,1894.5,0.49227409]
[1772006018011,1.31933083,1894.9,1894.5,0.49227409]
[1772006021107,0.48930704,1894.9,1894.5,0.49227409]
[1772006022684,0.48930704,1894.9,1894.5,1.32060014]
[1772006022876,0.48930704,1894.9,1894.6,0.49127409]
[1772006023707,1.80849863,1895.1,1894.6,0.49127409]
[1772006024406,0.48930704,1895.0,1894.6,0.49127409]
[1772006026515,0.48930704,1894.9,1894.5,0.001]
[1772006027010,0.48930704,1894.9,1894.5,0.49227409]
[1772006027712,0.48930704,1894.9,1894.6,0.001]
[1772006027880,0.49130704,1894.9,1894.6,0.001]
[1772006028083,0.002,1894.9,1894.7,1.49527821]
[1772006028405,0.002,1894.9,1894.7,1.00400412]
[1772006028580,0.002,1894.9,1894.8,0.49127409]
[1772006028981,1.80855462,1895.1,1894.8,0.49127409]
[1772006028982,1.8085109,1895.1,1894.8,0.49127409]
[1772006029393,1.31920386,1895.1,1894.8,0.49127409]
[1772006029818,1.32118313,1895.2,1894.8,0.49127409]
[1772006032517,1.81049017,1895.2,1894.8,0.49127409]
[1772006032724,0.48930704,1895.1,1894.8,0.49127409]
[1772006033715,1.31926121,1895.0,1894.8,0.49127409]
[1772006034110,1.80855324,1895.1,1894.8,0.49127409]
[1772006037915,0.46560589,1895.0,1894.7,1.00400412]
[1772006038113,0.46560589,1895.0,1894.6,0.001]
[1772006038114,1.3192462,1895.1,1894.6,1.47518722]
[1772006038314,1.3192462,1895.1,1894.7,0.4701831]
[1772006041421,1.3192462,1895.1,1894.8,0.4711831]
[1772006041923,0.002,1895.0,1894.8,0.4711831]
[1772006051932,0.002,1895.2,1894.9,0.4701831]
[1772006052128,0.002,1895.2,1895.1,0.4701831]
[1772006052636,1.31890685,1895.6,1895.3,0.4701831]
[1772006053338,1.78451274,1895.6,1895.3,0.4701831]
[1772006055343,0.002,1895.7,1895.4,1.00400412]
[1772006055548,0.002,1895.7,1895.5,0.4701831]
[1772006056121,0.46760589,1895.7,1895.4,0.4701831]
[1772006056345,0.46760589,1895.7,1895.1,0.4701831]
[1772006056539,0.002,1895.5,1895.1,0.4701831]
[1772006056753,0.46760589,1895.5,1895.1,0.4701831]
[1772006056957,0.46760589,1895.5,1894.9,0.4711831]
[1772006057744,1.78458869,1895.4,1894.9,0.4711831]
[1772006059217,1.78458869,1895.4,1894.9,0.001]
[1772006059218,0.46560589,1895.3,1894.9,0.001]
[1772006059528,0.46560589,1895.3,1894.9,0.4711831]
[1772006061922,1.78472788,1895.2,1894.9,0.4711831]
[1772006062249,0.46560589,1895.1,1894.9,0.001]
[1772006063855,0.46560589,1895.1,1894.7,0.001]
[1772006064021,0.46560589,1894.9,1894.7,0.001]
[1772006066156,1.31940046,1894.8,1894.7,0.001]
[1772006074663,0.45540529,1894.7,1894.5,0.001]
[1772006074961,1.77480575,1894.8,1894.5,0.42677813]
[1772006077568,1.77480575,1894.8,1893.2,5.562]
[1772006077569,0.66938796,1894.7,1894.0,0.42577813]
[1772006077740,0.45540529,1894.5,1894.1,0.42577813]
[1772006078073,0.45540529,1894.5,1894.2,0.42577813]
[1772006081266,1.77505209,1894.5,1894.2,0.42677813]
[1772006081668,0.002,1894.4,1894.2,0.42677813]
[1772006086761,0.002,1894.4,1894.2,1.09616609]
[1772006086968,0.002,1894.4,1894.3,0.42577813]
[1772006088275,0.48766462,1894.4,1894.2,0.001]
[1772006089268,0.002,1894.4,1894.2,0.42677813]
[1772006089443,0.002,1894.4,1894.3,0.42577813]
[1772006090978,0.002,1894.4,1894.2,0.001]
[1772006091174,0.002,1894.4,1894.2,0.42677813]
[1772006098383,0.002,1894.4,1894.3,1.09516609]
[1772006098562,0.002,1894.4,1894.3,0.42577813]
[1772006099359,0.002,1894.4,1894.2,0.001]
[1772006099562,0.49760249,1894.4,1894.2,0.001]
[1772006100090,0.002,1894.4,1894.2,0.42677813]
[1772006101491,0.002,1894.4,1894.2,0.001]
[1772006101492,0.49560249,1894.3,1894.2,0.001]
[1772006101667,0.49560249,1894.3,1894.0,0.001]
[1772006101668,0.49560249,1894.2,1894.0,0.001]
[1772006101868,0.49560249,1894.3,1894.0,0.42777813]
[1772006102175,0.49760249,1894.4,1894.1,1.09616609]
[1772006102363,0.002,1894.4,1894.3,0.42677813]
[1772006103790,0.002,1894.4,1894.3,1.09616609]
[1772006104087,0.002,1894.4,1894.3,0.42677813]
[1772006105271,0.49760249,1894.4,1894.1,0.42677813]
[1772006105668,0.49760249,1894.4,1894.1,1.09616609]
[1772006106872,0.49560249,1894.3,1894.0,0.42777813]
[1772006107891,1.8153512,1894.3,1894.2,0.001]
[1772006110396,0.49560249,1894.3,1894.2,0.001]
[1772006112778,1.8153512,1894.3,1894.2,0.001]
[1772006115421,0.49560249,1894.2,1894.0,0.001]
[1772006115588,1.98913667,1894.3,1894.0,0.001]
[1772006115589,0.49560249,1894.1,1894.0,0.001]
[1772006117223,1.81549056,1894.1,1894.0,0.001]
[1772006119786,0.49560249,1894.1,1894.0,0.001]
[1772006121433,1.81549056,1894.1,1894.0,0.001]
[1772006121592,1.31988807,1894.1,1893.8,0.001]
[1772006121794,0.49560249,1894.0,1893.8,0.001]
[1772006123312,0.49560249,1893.9,1893.8,0.001]
[1772006128114,5.76717588,1894.1,1893.8,0.001]
[1772006128440,0.48761277,1894.0,1893.8,0.001]
[1772006130132,1.80750084,1894.1,1893.8,0.42977813]
[1772006131866,1.80750084,1894.1,1893.8,0.001]
[1772006131867,0.48761277,1894.0,1893.8,0.001]
[1772006132977,1.80759306,1894.0,1893.8,0.001]
[1772006133471,1.80759306,1894.0,1893.9,0.001]
[1772006133824,1.80959306,1894.0,1893.9,0.001]
[1772006138236,0.48761277,1893.9,1893.7,0.001]
[1772006138833,1.80767572,1893.9,1893.7,0.001]
[1772006139370,1.80764366,1893.9,1893.7,0.001]
[1772006140872,0.48761277,1893.9,1893.7,0.001]
[1772006141070,0.002,1894.0,1893.8,1.43375855]
[1772006141281,0.002,1894.0,1893.8,0.42877813]
[1772006145803,0.502,1894.0,1893.7,0.001]
[1772006147159,1.82195776,1894.0,1893.9,0.001]
[1772006147559,0.502,1894.0,1893.9,0.001]
[1772006148888,1.82195776,1894.0,1893.9,0.001]
[1772006153699,0.4995,1893.9,1893.8,0.001]
[1772006157099,0.002,1894.0,1893.8,0.001]
[1772006157100,0.5015,1894.0,1893.8,0.001]
[1772006157271,0.002,1894.0,1893.8,0.002]
[1772006159879,0.002,1894.0,1893.9,0.001]
[1772006161499,0.5015,1894.0,1893.9,0.001]
[1772006164001,1.82145776,1894.0,1893.9,0.001]
[1772006178119,1.82145776,1894.0,1893.8,0.001]
[1772006178120,0.499,1893.9,1893.8,0.001]
[1772006178434,0.499,1893.9,1893.6,0.001]
[1772006183403,1.81908184,1893.9,1893.7,0.001]
[1772006183729,1.82108184,1893.9,1893.7,0.001]
[1772006184428,1.32208184,1893.9,1893.7,0.001]
[1772006184604,0.499,1893.8,1893.7,0.001]
[1772006188233,0.002,1893.9,1893.7,0.001]
[1772006188415,0.002,1894.0,1893.8,1.00698042]
[1772006192714,0.002,1894.1,1893.8,1.00498042]
[1772006192907,0.002,1894.1,1893.9,0.002]
[1772006193113,0.002,1894.2,1893.9,1.00698042]
[1772006193336,0.002,1894.2,1894.1,0.66960537]
[1772006193512,0.002,1894.3,1894.1,0.67160537]
[1772006193719,1.81854633,1894.6,1894.3,0.002]
[1772006193925,1.32160939,1894.5,1894.3,0.67160537]
[1772006194236,1.78206757,1894.6,1894.3,0.67160537]
[1772006194640,1.78206757,1894.6,1894.3,0.002]
[1772006195543,0.002,1894.5,1894.3,0.002]
[1772006199554,0.46447128,1894.5,1894.1,0.4573208]
[1772006199746,0.46447128,1894.5,1894.0,1.12692617]
[1772006199926,0.46447128,1894.5,1894.1,0.66960537]
[1772006200127,0.002,1894.5,1894.4,0.66960537]
[1772006200329,0.002,1894.5,1894.3,1.12692617]
[1772006202358,1.32153974,1894.6,1894.4,0.66960537]
[1772006202559,1.32153974,1894.6,1894.3,1.12692617]
[1772006202963,1.78401102,1894.6,1894.3,1.12692617]
[1772006203263,1.78401288,1894.6,1894.3,1.12692617]
[1772006203846,0.46247128,1894.5,1894.2,1.12692617]
[1772006204241,1.78401288,1894.6,1894.3,0.4573208]
[1772006205164,1.78401288,1894.6,1894.3,1.12692617]
[1772006205475,1.78394276,1894.7,1894.5,0.66960537]
[1772006205676,1.78392724,1894.8,1894.6,0.66960537]
[1772006205858,1.78392724,1894.8,1894.7,0.66960537]
[1772006206059,1.78392724,1894.8,1894.6,0.66960537]
[1772006206653,1.78392724,1894.8,1894.5,0.4573208]
[1772006207687,0.002,1894.6,1894.5,0.4573208]
[1772006208863,0.002,1894.6,1894.4,0.67060537]
[1772006209079,0.002,1894.6,1894.4,1.12792617]
[1772006211991,0.002,1894.6,1894.5,0.66960537]
[1772006212284,0.46447128,1894.6,1894.4,0.67060537]
[1772006212471,0.46447128,1894.6,1894.4,0.001]
[1772006214896,1.78402438,1894.6,1894.4,0.001]
[1772006220192,1.3215531,1894.6,1894.4,0.001]
[1772006220793,1.3215531,1894.6,1894.5,0.001]
[1772006221403,1.81267749,1894.6,1894.5,0.001]
[1772006222004,0.49112439,1894.5,1894.3,0.001]
[1772006223025,5.27989424,1894.7,1894.5,0.47830013]
[1772006223026,0.002,1894.7,1894.5,0.47830013]
[1772006223174,1.81246104,1894.9,1894.6,1.1479055]
[1772006223375,0.49112439,1894.8,1894.5,1.1479055]
[1772006227775,0.002,1894.9,1894.7,0.66960537]
[1772006228105,0.002,1894.9,1894.6,1.1479055]
[1772006228610,0.49312439,1894.9,1894.6,1.1479055]
[1772006228788,1.81247469,1894.9,1894.6,1.1479055]
[1772006228990,0.49112439,1894.8,1894.5,1.1479055]
[1772006233113,0.49112439,1894.8,1894.7,0.001]
[1772006233309,0.49312439,1894.8,1894.7,0.001]
[1772006234014,1.81252485,1894.8,1894.7,0.001]
[1772006234914,0.49312439,1894.8,1894.7,0.001]
[1772006236914,1.81252485,1894.8,1894.7,0.001]
[1772006238013,0.49312439,1894.8,1894.7,0.001]
[1772006242848,0.002,1894.8,1894.7,0.001]
[1772006243078,0.002,1894.8,1894.7,0.47930013]
[1772006246324,0.002,1895.2,1895.0,0.47814998]
[1772006246654,0.002,1895.3,1894.7,8.01651787]
[1772006246655,0.4634603,1895.3,1894.8,0.47814998]
[1772006246871,0.4634603,1895.3,1894.9,0.47814998]
[1772006247079,0.4634603,1895.5,1895.2,0.47814998]
[1772006247674,0.4634603,1895.5,1895.0,0.49626246]
[1772006249374,1.76977499,1895.4,1895.0,0.49626246]
[1772006252370,0.45079219,1895.3,1895.0,0.49626246]
[1772006252543,0.45079219,1895.2,1894.8,0.49626246]
[1772006253880,1.76997397,1895.2,1894.8,0.49626246]
[1772006256111,0.45079219,1895.1,1894.8,0.49626246]
[1772006256601,0.45079219,1895.1,1894.7,0.49726246]
[1772006257604,0.45079219,1895.0,1894.7,0.001]
[1772006258679,0.45079219,1895.0,1894.8,0.001]
[1772006260895,1.77012302,1894.9,1894.8,0.001]
[1772006261095,0.45079219,1894.8,1894.5,0.49726246]
[1772006261485,0.45079219,1894.8,1894.5,0.001]
[1772006262818,1.3194701,1894.7,1894.5,0.001]
[1772006263020,1.77026229,1894.7,1894.5,0.001]
[1772006264621,0.45079219,1894.6,1894.3,0.46620882]
[1772006264918,1.77038858,1894.6,1894.3,0.46620882]
[1772006265802,0.45079219,1894.6,1894.3,0.46620882]
[1772006266002,1.77033732,1894.6,1894.3,0.46620882]
[1772006266828,0.45079219,1894.6,1894.3,0.46620882]
[1772006267124,1.31950692,1894.7,1894.3,0.46620882]
[1772006267326,1.77029911,1894.7,1894.3,0.46620882]
[1772006268532,0.45079219,1894.6,1894.3,0.46620882]
[1772006269333,1.77036277,1894.6,1894.3,0.46620882]
[1772006270645,0.45079219,1894.5,1894.3,0.001]
[1772006271142,0.45079219,1894.5,1894.4,0.001]
[1772006271627,0.45079219,1894.4,1894.3,0.001]
[1772006272943,1.31960939,1894.5,1894.3,0.001]
[1772006273171,0.45079219,1894.4,1894.3,0.001]
[1772006273819,1.77047124,1894.4,1894.3,0.001]
[1772006274224,0.45079219,1894.3,1894.2,0.001]
[1772006274954,0.45279219,1895.1,1894.3,0.49626246]
[1772006275271,0.002,1895.3,1894.9,1.00374057]
[1772006275566,0.45279219,1895.5,1895.4,9.01939221]
[1772006275754,0.002,1895.5,1895.4,9.01939221]
[1772006277075,0.002,1895.5,1895.4,0.48175758]
[1772006277446,0.49153448,1895.8,1895.5,9.017393]
[1772006278269,0.49153448,1895.8,1895.5,9.49915058]
[1772006278573,1.3186837,1895.9,1895.5,0.48175758]
[1772006278870,0.27573063,1897.7,1895.5,0.48175758]
[1772006278871,0.49153448,1896.2,1896.0,9.017393]
[1772006279446,5.27308094,1896.5,1896.1,9.49915058]
[1772006279447,0.49153448,1896.5,1896.1,9.49915058]
[1772006279649,0.49153448,1896.5,1896.2,0.48175758]
[1772006280374,0.49153448,1896.4,1896.2,9.017393]
[1772006282854,1.31820108,1896.6,1896.2,9.017393]
[1772006283082,0.49153448,1896.5,1896.2,9.017393]
[1772006283780,0.002,1896.3,1896.2,9.017393]
[1772006284848,0.49353448,1896.3,1896.2,9.017393]
[1772006285044,0.49353448,1896.3,1896.0,0.48175758]
[1772006285274,0.49353448,1896.3,1895.6,0.48175758]
[1772006286877,0.49153448,1896.2,1895.8,0.48175758]
[1772006290479,1.80996737,1896.2,1895.8,0.48175758]
[1772006290860,0.49153448,1896.1,1895.8,0.48175758]
[1772006294490,1.81003143,1896.1,1895.8,0.48175758]
[1772006294691,0.49153448,1896.1,1895.8,0.48175758]
[1772006296358,0.49153448,1896.1,1895.9,0.001]
[1772006300303,0.49353448,1896.2,1895.9,0.48275758]
[1772006303009,0.002,1896.3,1896.0,0.48175758]
[1772006305742,0.002,1896.3,1896.1,0.45632555]
[1772006308029,3.36650669,1896.9,1896.4,0.48548747]
[1772006308230,3.3665143,1896.9,1896.5,0.48548747]
[1772006308435,0.46356522,1896.8,1896.5,0.48548747]
[1772006310651,1.7815753,1896.8,1896.5,0.48548747]
[1772006311933,0.46356522,1896.6,1896.1,0.48548747]
[1772006312140,1.31801008,1896.8,1896.0,0.001]
[1772006312141,0.46356522,1896.4,1896.0,0.48648747]
[1772006313829,0.46356522,1896.2,1896.0,0.001]
[1772006316040,0.46356522,1896.2,1895.9,0.001]
[1772006316041,0.46356522,1896.0,1895.9,0.001]
[1772006318551,1.78213062,1896.0,1895.9,0.001]
[1772006323787,1.78213062,1896.0,1895.7,0.001]
[1772006323788,0.46356522,1895.9,1895.7,0.001]
[1772006325692,1.78224513,1895.9,1895.7,0.001]
[1772006327491,1.31867991,1895.9,1895.7,0.001]
[1772006329534,2.45075906,1895.9,1895.7,0.001]
[1772006329686,0.46356522,1895.8,1895.7,0.001]
[1772006330674,1.31867991,1895.9,1895.7,0.001]
[1772006331172,0.46356522,1895.9,1895.7,0.001]
[1772006331398,1.78221758,1895.9,1895.7,0.001]
[1772006332710,0.46356522,1895.7,1895.4,0.48548747]
[1772006332909,1.13207915,1895.7,1895.4,0.48548747]
[1772006333210,0.46356522,1895.7,1895.4,0.48548747]
[1772006334005,1.78240002,1895.7,1895.4,0.48548747]
[1772006335086,1.78240002,1895.7,1895.5,0.001]
[1772006336386,2.45091395,1895.7,1895.5,0.001]
[1772006336581,0.48997429,1895.6,1895.5,0.001]
[1772006337099,0.48997429,1895.6,1895.4,0.001]
[1772006337296,1.98734873,1895.7,1895.4,0.001]
[1772006337492,2.47732302,1895.7,1895.4,0.49475935]
[1772006340216,2.47732302,1895.7,1895.3,0.49375935]
[1772006340520,2.47732302,1895.7,1895.2,0.001]
[1772006340521,0.48997429,1895.5,1895.2,0.3812745]
[1772006340687,1.15848822,1895.6,1895.2,0.3812745]
[1772006340891,0.48997429,1895.6,1895.2,0.3812745]
[1772006341120,1.31889718,1895.6,1895.2,0.3812745]
[1772006346607,1.80887147,1895.6,1895.2,0.3812745]
[1772006347631,1.80887147,1895.6,1895.3,0.001]
[1772006347827,1.80887147,1895.6,1895.3,0.3812745]
[1772006356052,1.81073129,1895.8,1895.5,0.3802745]
[1772006356354,1.32071324,1895.8,1895.6,0.3802745]
[1772006358422,0.48997429,1895.6,1895.3,0.3812745]
[1772006358959,0.48997429,1895.7,1895.3,0.3812745]
[1772006359322,0.002,1895.5,1895.3,0.3812745]
[1772006363757,0.002,1895.5,1895.4,1.04878843]
[1772006364052,0.002,1895.5,1895.4,0.3802745]
[1772006368453,0.502,1895.5,1895.2,0.001]
[1772006371256,0.002,1895.5,1895.3,0.66851393]
[1772006371429,0.002,1895.5,1895.4,0.66851393]
[1772006373529,0.002,1895.5,1895.3,0.66951393]
[1772006374865,0.002,1895.5,1895.4,0.66851393]
[1772006375262,0.002,1895.5,1895.3,0.001]
[1772006386172,0.002,1895.5,1895.4,0.001]
[1772006390875,0.002,1895.6,1895.4,1.0040909]
[1772006398661,0.002,1895.6,1895.4,0.001]
[1772006398862,0.5,1895.5,1895.4,0.001]
[1772006399274,0.502,1895.5,1895.4,0.001]
[1772006401062,1.82091321,1895.5,1895.4,0.001]
[1772006401796,0.002,1895.5,1895.4,0.001]
[1772006402085,0.002,1895.6,1895.4,1.0040909]
[1772006402581,1.32085562,1895.6,1895.4,1.0040909]
[1772006402789,0.502,1895.6,1895.4,1.0040909]
[1772006403003,0.502,1895.6,1895.4,0.001]
[1772006404199,0.502,1895.6,1895.3,0.001]
[1772006404372,0.502,1895.6,1895.1,0.001]
[1772006405185,0.4995,1895.4,1895.1,0.001]
[1772006409393,0.4995,1895.2,1895.1,0.001]
[1772006409775,0.4995,1895.2,1895.0,0.001]
[1772006410692,0.499,1895.4,1895.0,0.003]
[1772006410886,0.499,1895.4,1895.1,0.002]
[1772006411088,1.81798796,1895.4,1895.1,0.002]
[1772006411272,0.499,1895.4,1895.1,1.0050909]
[1772006411472,1.81791321,1895.5,1895.2,0.002]
[1772006411777,0.499,1895.5,1895.2,0.003]
[1772006412130,0.501,1895.5,1895.2,0.003]
[1772006414100,1.3189828,1895.4,1895.2,0.003]
[1772006414392,1.8179828,1895.4,1895.2,0.001]
[1772006414603,0.499,1895.3,1895.2,0.001]
[1772006415403,5.2779312,1895.5,1895.3,0.002]
[1772006415404,0.002,1895.5,1895.3,0.002]
[1772006415698,1.32085886,1895.6,1895.3,0.002]
[1772006417176,0.002,1895.6,1895.3,0.002]
[1772006417475,0.002,1895.6,1895.5,0.002]
[1772006417677,0.002,1895.8,1895.6,0.002]
[1772006417899,1.32070517,1895.8,1895.6,0.002]
[1772006418591,0.002,1895.8,1895.6,0.002]
[1772006420098,0.501,1895.8,1895.5,0.002]
[1772006420406,1.81977099,1895.8,1895.5,0.002]
[1772006420594,0.501,1895.8,1895.5,0.002]
[1772006421398,0.002,1895.8,1895.5,0.002]
[1772006421909,1.584,1896.1,1895.6,1.0030909]
[1772006422214,1.584,1896.1,1895.9,0.002]
[1772006422504,2.90249781,1896.1,1895.9,0.002]
[1772006422701,1.584,1896.1,1895.9,0.002]
[1772006423906,5.27344973,1896.3,1895.9,0.002]
[1772006423907,0.499,1896.3,1895.9,0.002]
[1772006424625,1.81739792,1896.3,1895.9,0.002]
[1772006424909,0.002,1896.0,1895.9,0.002]
[1772006426296,0.499,1896.5,1896.0,0.002]
[1772006426496,0.499,1896.5,1896.1,0.002]
[1772006426799,1.31820241,1896.6,1896.1,0.002]
[1772006427178,1.81720241,1896.6,1896.1,0.002]
[1772006427380,0.499,1896.5,1896.1,0.002]
[1772006427706,0.499,1896.4,1895.8,0.002]
[1772006428407,0.49942765,1896.3,1895.8,0.002]
[1772006429198,0.49942765,1895.8,1895.2,0.003]
[1772006429398,0.49942765,1895.8,1895.3,0.002]
[1772006430387,0.49942765,1895.8,1895.2,0.001]
[1772006430388,0.49942765,1895.6,1895.2,0.001]
[1772006430712,0.49942765,1895.6,1895.1,0.002]
[1772006430713,0.49942765,1895.5,1895.0,0.001]
[1772006431908,0.49942765,1895.5,1895.0,1.32325448]
[1772006432229,0.49942765,1895.5,1895.1,0.003]
[1772006432428,9.01475387,1895.9,1895.4,1.0060909]
[1772006432429,1.81809317,1895.9,1895.4,1.0060909]
[1772006432735,1.81809317,1895.9,1895.0,0.001]
[1772006432736,0.49942765,1895.8,1895.1,1.31914515]
[1772006433024,0.49942765,1895.8,1895.1,0.003]
[1772006433828,0.49942765,1895.4,1895.0,0.001]
[1772006435407,0.49942765,1895.4,1895.0,0.004]
[1772006435610,0.49942765,1895.6,1895.1,0.003]
[1772006436732,1.81834086,1895.5,1895.1,0.003]
[1772006436932,1.81834086,1895.5,1895.1,0.004]
[1772006437426,1.31891321,1895.5,1895.1,0.001]
[1772006437630,0.49942765,1895.4,1895.1,0.001]
[1772006438232,0.49942765,1895.4,1895.1,0.004]
[1772006439115,1.3188966,1895.6,1895.1,0.004]
[1772006439116,0.49942765,1895.5,1895.1,0.004]
[1772006440633,0.49942765,1895.5,1895.1,0.6729519]
[1772006440834,0.49942765,1895.5,1895.2,0.003]
[1772006441533,0.49942765,1895.5,1895.2,1.32212199]
[1772006441832,0.49942765,1895.7,1895.2,0.003]
[1772006444941,0.49942765,1895.6,1895.2,0.003]
[1772006447652,0.49942765,1895.7,1895.3,0.003]
[1772006447858,0.49942765,1895.7,1895.4,0.003]
[1772006448458,1.32071243,1895.8,1895.4,0.003]
[1772006448619,1.32070786,1895.8,1895.4,0.003]
[1772006448950,1.82013551,1895.8,1895.4,0.003]
[1772006449115,1.82013775,1895.8,1895.4,0.003]
[1772006449816,0.002,1895.5,1895.4,0.003]
[1772006453320,0.002,1895.5,1895.2,1.99107389]
[1772006453730,0.002,1895.5,1895.3,0.003]
[1772006454247,0.002,1895.5,1895.3,0.6719519]
[1772006454746,0.002,1895.5,1895.3,0.003]
[1772006456549,0.002,1895.5,1895.3,0.6719519]
[1772006457717,0.002,1895.5,1895.3,0.6689519]
[1772006458641,0.5005,1895.5,1895.3,1.98800214]
[1772006458833,0.5005,1895.5,1895.3,1.31905024]
[1772006459924,0.002,1895.5,1895.3,1.32205024]
[1772006460349,0.002,1895.5,1895.3,1.99100214]
[1772006462258,0.002,1895.5,1895.3,1.99200214]
[1772006465258,0.002,1895.8,1895.7,0.6719519]
[1772006465750,0.002,1895.8,1895.3,1.32005024]
[1772006465751,0.002,1895.8,1895.6,0.003]
[1772006466057,0.5005,1895.8,1895.5,0.6719519]
[1772006466458,0.002,1895.8,1895.6,0.6719519]
[1772006466634,0.002,1895.8,1895.7,0.003]
[1772006466833,0.4985,1896.1,1895.7,0.6689519]
[1772006467056,0.4985,1896.1,1895.8,0.6719519]
[1772006467359,0.4985,1896.1,1895.8,0.003]
[1772006467730,0.4985,1896.1,1895.7,0.003]
[1772006468054,0.4985,1895.9,1895.5,0.003]
[1772006468470,0.4985,1895.8,1895.3,1.31999288]
[1772006468877,0.4985,1895.8,1895.3,1.32299288]
[1772006469170,0.4985,1895.8,1895.3,0.6729519]
[1772006469369,0.4985,1895.8,1895.4,0.6689519]
[1772006469775,0.4985,1895.8,1895.3,0.6729519]
[1772006471674,0.4985,1895.8,1895.3,1.99196915]
[1772006471675,0.4985,1895.7,1895.3,1.99196915]
[1772006471974,0.4985,1895.5,1895.3,0.001]
[1772006472345,0.4985,1895.5,1895.2,0.001]
[1772006472844,0.6689519,1895.6,1895.2,0.001]
[1772006472845,0.498,1895.4,1895.2,0.001]
[1772006475450,0.498,1895.3,1895.2,0.001]
[1772006475672,1.1669519,1895.3,1895.2,0.001]
[1772006475980,0.498,1895.3,1895.2,0.001]
[1772006476365,2.48600429,1895.3,1895.2,0.001]
[1772006476679,0.498,1895.1,1894.9,0.001]
[1772006478750,0.498,1895.4,1895.0,0.6729519]
[1772006479259,0.498,1895.4,1895.0,0.004]
[1772006479849,0.498,1895.4,1895.0,0.6729519]
[1772006480079,0.498,1895.4,1895.0,1.99217041]
[1772006480280,0.498,1895.4,1895.0,1.32321851]
[1772006482683,0.498,1895.4,1895.0,0.004]
[1772006483851,0.498,1895.3,1894.9,0.005]
[1772006484077,0.498,1895.3,1894.9,0.001]
[1772006484571,1.31905661,1895.3,1894.9,0.001]
[1772006484782,0.498,1895.2,1894.9,0.001]
[1772006485791,1.31905661,1895.3,1894.9,0.001]
[1772006485792,0.498,1895.0,1894.9,0.001]
[1772006488464,0.4975,1894.9,1894.5,1.32460939]
[1772006488662,0.4975,1894.9,1894.6,0.005]
[1772006488961,0.4975,1894.8,1894.4,1.32562239]